[Event "Late-Titled-Tuesday-Blitz-May-14-2024"]
[Site "Chess.com"]
[Date "2024.05.14"]
[Round "7"]
[White "MaxLeto"]
[Black "carloseduar100"]
[Result "1-0"]
[WhiteElo "2389"]
[BlackElo "2257"]
[TimeControl "180+1"]
[EndTime "15:17:32 PDT"]
[Termination "MaxLeto won by resignation"]

1. e4 {[%clk 0:03:00.4]} 1... e6 {[%clk 0:02:56.3]} 2. d4 {[%clk 0:03:00.4]}
2... d5 {[%clk 0:02:56.4]} 3. Nc3 {[%clk 0:02:59.6]} 3... Nf6 {[%clk 0:02:56.6]}
4. e5 {[%clk 0:02:59.1]} 4... Nfd7 {[%clk 0:02:56.8]} 5. f4 {[%clk 0:02:59.9]}
5... c5 {[%clk 0:02:57.6]} 6. Nf3 {[%clk 0:03:00.3]} 6... Nc6 {[%clk 0:02:58.5]}
7. Ne2 {[%clk 0:02:59.8]} 7... cxd4 {[%clk 0:02:58.3]} 8. Nexd4 {[%clk
0:02:59.9]} 8... Nxd4 {[%clk 0:02:59.2]} 9. Nxd4 {[%clk 0:02:59.7]} 9... a6
{[%clk 0:02:59.4]} 10. c3 {[%clk 0:02:52.5]} 10... g6 {[%clk 0:02:59]} 11. Be3
{[%clk 0:02:51.8]} 11... Bg7 {[%clk 0:02:59.4]} 12. Be2 {[%clk 0:02:51.6]} 12...
O-O {[%clk 0:02:59.6]} 13. h4 {[%clk 0:02:50.8]} 13... Qc7 {[%clk 0:02:59.8]}
14. h5 {[%clk 0:02:50.1]} 14... b5 {[%clk 0:03:00.2]} 15. Bg4 {[%clk 0:02:38.9]}
15... Nc5 {[%clk 0:03:00.3]} 16. hxg6 {[%clk 0:02:36.1]} 16... hxg6 {[%clk
0:03:00]} 17. Qe2 {[%clk 0:02:26.1]} 17... Ne4 {[%clk 0:02:59.9]} 18. Rh3 {[%clk
0:02:22.5]} 18... b4 {[%clk 0:02:47.7]} 19. cxb4 {[%clk 0:02:21.1]} 19... Bd7
{[%clk 0:02:42.5]} 20. Rc1 {[%clk 0:02:16.8]} 20... Qb7 {[%clk 0:02:42.7]} 21.
a3 {[%clk 0:02:16.7]} 21... Rfc8 {[%clk 0:02:42.9]} 22. Bf3 {[%clk 0:02:07.9]}
22... a5 {[%clk 0:02:41.1]} 23. Rxc8+ {[%clk 0:01:59]} 23... Rxc8 {[%clk
0:02:38.8]} 24. Bxe4 {[%clk 0:01:59.5]} 24... dxe4 {[%clk 0:02:38.4]} 25. bxa5
{[%clk 0:01:54.2]} 25... Qd5 {[%clk 0:02:18.5]} 26. a6 {[%clk 0:01:48.3]} 26...
Rc4 {[%clk 0:02:14.7]} 27. Qd2 {[%clk 0:01:45.1]} 27... Bf8 {[%clk 0:02:09.7]}
28. b4 {[%clk 0:01:32.1]} 28... Ba4 {[%clk 0:02:04.5]} 29. Bf2 {[%clk
0:01:03.6]} 29... e3 {[%clk 0:01:36.7]} 30. Bxe3 {[%clk 0:01:01.5]} 30... Qe4
{[%clk 0:01:37]} 31. Kf2 {[%clk 0:00:52.7]} 31... Rc8 {[%clk 0:01:13.4]} 32. Rh1
{[%clk 0:00:34.7]} 32... Rd8 {[%clk 0:01:12.1]} 33. Rc1 {[%clk 0:00:31.2]} 33...
Qa8 {[%clk 0:01:06.4]} 34. Qe2 {[%clk 0:00:25.1]} 34... Qe4 {[%clk 0:01:04.7]}
35. Nf3 {[%clk 0:00:12.6]} 35... Bh6 {[%clk 0:00:59.8]} 36. Rc4 {[%clk
0:00:08.6]} 36... Qb1 {[%clk 0:00:56.6]} 37. Rc7 {[%clk 0:00:06.1]} 37... Qh1
{[%clk 0:00:48.6]} 38. a7 {[%clk 0:00:06]} 38... Bf8 {[%clk 0:00:43.8]} 39. Rb7
{[%clk 0:00:05.6]} 39... Bc6 {[%clk 0:00:41.8]} 40. Rb8 {[%clk 0:00:06]} 40...
Be7 {[%clk 0:00:18.2]} 41. b5 {[%clk 0:00:06.4]} 41... Be4 {[%clk 0:00:16.9]}
42. b6 {[%clk 0:00:06.9]} 42... Bh4+ {[%clk 0:00:14.7]} 43. Nxh4 {[%clk
0:00:02.8]} 43... Qxh4+ {[%clk 0:00:15.6]} 44. Kg1 {[%clk 0:00:03.7]} 44... Qe7
{[%clk 0:00:15.3]} 45. Rxd8+ {[%clk 0:00:03.3]} 45... Qxd8 {[%clk 0:00:15.5]}
46. Qd2 {[%clk 0:00:03.7]} 46... Qa8 {[%clk 0:00:14.1]} 47. Qd6 {[%clk
0:00:03.3]} 47... Kg7 {[%clk 0:00:14.4]} 48. Qb8 {[%clk 0:00:04]} 48... Bxg2
{[%clk 0:00:13.5]} 49. Qxa8 {[%clk 0:00:04]} 49... Bxa8 {[%clk 0:00:14.4]} 50.
a4 {[%clk 0:00:04.2]} 50... Kf8 {[%clk 0:00:15.1]} 51. a5 {[%clk 0:00:04.7]}
51... Ke8 {[%clk 0:00:16]} 52. a6 {[%clk 0:00:05.2]} 52... Kd7 {[%clk
0:00:16.9]} 53. b7 {[%clk 0:00:05.7]} 53... Bxb7 {[%clk 0:00:15.8]} 54. axb7
{[%clk 0:00:06.6]} 54... Kc6 {[%clk 0:00:15.8]} 55. b8=Q {[%clk 0:00:07.5]}
55... Kd5 {[%clk 0:00:16.7]} 56. a8=Q+ {[%clk 0:00:07.7]} 56... Kc4 {[%clk
0:00:17.1]} 57. Kf2 {[%clk 0:00:08.2]} 57... Kd3 {[%clk 0:00:18]} 58. Qd6+
{[%clk 0:00:08.5]} 58... Kc2 {[%clk 0:00:17.5]} 59. Qac6+ {[%clk 0:00:08.7]} 1-0

[Event "Late-Titled-Tuesday-Blitz-May-14-2024"]
[Site "Chess.com"]
[Date "2024.05.14"]
[Round "7"]
[White "KuzubovYuriy"]
[Black "jinbojinbo"]
[Result "1-0"]
[WhiteElo "2936"]
[BlackElo "2656"]
[TimeControl "180+1"]
[EndTime "15:17:33 PDT"]
[Termination "KuzubovYuriy won on time"]

1. d4 {[%clk 0:03:00.9]} 1... Nf6 {[%clk 0:02:59.1]} 2. Nf3 {[%clk 0:03:01.6]}
2... g6 {[%clk 0:02:59.1]} 3. Nbd2 {[%clk 0:03:01.8]} 3... d5 {[%clk 0:02:58.2]}
4. e3 {[%clk 0:03:02.3]} 4... Bg7 {[%clk 0:02:58.2]} 5. b4 {[%clk 0:03:02.9]}
5... O-O {[%clk 0:02:57.8]} 6. Bb2 {[%clk 0:03:02.9]} 6... a5 {[%clk 0:02:57.2]}
7. b5 {[%clk 0:03:03.4]} 7... c6 {[%clk 0:02:57.2]} 8. c4 {[%clk 0:03:01.8]}
8... dxc4 {[%clk 0:02:51.8]} 9. Bxc4 {[%clk 0:03:01]} 9... cxb5 {[%clk
0:02:44.5]} 10. Bxb5 {[%clk 0:03:01.2]} 10... Nc6 {[%clk 0:02:40]} 11. O-O
{[%clk 0:02:59.1]} 11... Bf5 {[%clk 0:02:32.1]} 12. Qb3 {[%clk 0:02:48.8]} 12...
Nb4 {[%clk 0:02:21.2]} 13. Rfc1 {[%clk 0:02:38.4]} 13... Ne4 {[%clk 0:01:52.8]}
14. a3 {[%clk 0:02:21.6]} 14... Nd5 {[%clk 0:01:51.6]} 15. Nxe4 {[%clk 0:02:18]}
15... Bxe4 {[%clk 0:01:50.5]} 16. Nd2 {[%clk 0:02:18.2]} 16... Bf5 {[%clk
0:01:27.5]} 17. Rc5 {[%clk 0:02:07.3]} 17... Nb6 {[%clk 0:01:20.4]} 18. Rac1
{[%clk 0:01:57.4]} 18... Nd7 {[%clk 0:01:08.4]} 19. Rc7 {[%clk 0:01:40.3]} 19...
Nf6 {[%clk 0:00:58.8]} 20. Rxb7 {[%clk 0:01:34.8]} 20... Rb8 {[%clk 0:00:58.8]}
21. Rxb8 {[%clk 0:01:34]} 21... Qxb8 {[%clk 0:00:59.7]} 22. h3 {[%clk
0:01:29.2]} 22... h5 {[%clk 0:00:54.1]} 23. a4 {[%clk 0:01:28.2]} 23... Ne4
{[%clk 0:00:51.1]} 24. Nxe4 {[%clk 0:01:26.3]} 24... Bxe4 {[%clk 0:00:52]} 25.
Qc3 {[%clk 0:01:14.8]} 25... Qb7 {[%clk 0:00:48.1]} 26. Bf1 {[%clk 0:01:13.6]}
26... Bf5 {[%clk 0:00:39.1]} 27. Ba3 {[%clk 0:01:00.5]} 27... Ra8 {[%clk
0:00:37.3]} 28. Qc5 {[%clk 0:00:50.3]} 28... Qb3 {[%clk 0:00:16.1]} 29. Qc3
{[%clk 0:00:41.8]} 29... Qxa4 {[%clk 0:00:15]} 30. Bxe7 {[%clk 0:00:40.8]} 30...
Rc8 {[%clk 0:00:12.9]} 31. Qb2 {[%clk 0:00:39.6]} 31... Rxc1 {[%clk 0:00:12.7]}
32. Qxc1 {[%clk 0:00:40.5]} 32... Qb3 {[%clk 0:00:11.2]} 33. Kh2 {[%clk
0:00:30.3]} 33... Qb8+ {[%clk 0:00:07.2]} 34. g3 {[%clk 0:00:28.3]} 34... a4
{[%clk 0:00:07]} 35. Qa3 {[%clk 0:00:26.3]} 35... Bd7 {[%clk 0:00:06.4]} 36. Bg2
{[%clk 0:00:22.9]} 36... h4 {[%clk 0:00:05.6]} 37. Bd6 {[%clk 0:00:21.7]} 37...
Qd8 {[%clk 0:00:04.6]} 38. gxh4 {[%clk 0:00:20.2]} 38... Qxh4 {[%clk 0:00:04.1]}
39. Qc5 {[%clk 0:00:19.8]} 39... Qxf2 {[%clk 0:00:03.7]} 40. Qc7 {[%clk
0:00:19.4]} 40... Qf5 {[%clk 0:00:03.2]} 41. e4 {[%clk 0:00:18.7]} 41... Qe6
{[%clk 0:00:03.1]} 42. d5 {[%clk 0:00:18.9]} 42... Qe8 {[%clk 0:00:03.4]} 43. e5
{[%clk 0:00:19.2]} 43... Qc8 {[%clk 0:00:03.3]} 44. Qxc8+ {[%clk 0:00:17.8]}
44... Bxc8 {[%clk 0:00:04.2]} 45. Bf1 {[%clk 0:00:16.9]} 45... Bf8 {[%clk
0:00:04]} 46. Bxf8 {[%clk 0:00:16.6]} 46... Kxf8 {[%clk 0:00:04.9]} 47. Bc4
{[%clk 0:00:16.4]} 47... a3 {[%clk 0:00:04.8]} 48. Kg3 {[%clk 0:00:16.4]} 48...
Ba6 {[%clk 0:00:04.4]} 49. Ba2 {[%clk 0:00:16.5]} 49... Ke7 {[%clk 0:00:04.4]}
50. h4 {[%clk 0:00:16.5]} 50... f6 {[%clk 0:00:04.5]} 51. Kf4 {[%clk 0:00:16.3]}
51... Bd3 {[%clk 0:00:03.1]} 52. d6+ {[%clk 0:00:15.9]} 52... Kd7 {[%clk
0:00:02.4]} 53. exf6 {[%clk 0:00:15.5]} 53... Kxd6 {[%clk 0:00:02]} 54. Kg5
{[%clk 0:00:15.9]} 54... Bf5 {[%clk 0:00:01.8]} 55. h5 {[%clk 0:00:15.7]} 55...
Be6 {[%clk 0:00:02]} 56. f7 {[%clk 0:00:11.8]} 1-0

[Event "Late-Titled-Tuesday-Blitz-May-14-2024"]
[Site "Chess.com"]
[Date "2024.05.14"]
[Round "7"]
[White "Roedor"]
[Black "LUISMIGUELOV"]
[Result "1-0"]
[WhiteElo "2386"]
[BlackElo "2218"]
[TimeControl "180+1"]
[EndTime "15:17:34 PDT"]
[Termination "Roedor won on time"]

1. Nf3 {[%clk 0:02:10]} 1... c6 {[%clk 0:03:00.9]} 2. c4 {[%clk 0:02:09]} 2...
Nf6 {[%clk 0:02:56.8]} 3. d4 {[%clk 0:02:08]} 3... h6 {[%clk 0:02:56.8]} 4. Nc3
{[%clk 0:02:05.7]} 4... d5 {[%clk 0:02:56.7]} 5. cxd5 {[%clk 0:02:05.6]} 5...
cxd5 {[%clk 0:02:55.5]} 6. Bf4 {[%clk 0:02:05.5]} 6... Nc6 {[%clk 0:02:55.6]} 7.
Ne5 {[%clk 0:02:04.2]} 7... Bd7 {[%clk 0:02:52.9]} 8. e3 {[%clk 0:02:00.9]} 8...
e6 {[%clk 0:02:52.9]} 9. Bd3 {[%clk 0:02:01.1]} 9... Be7 {[%clk 0:02:50.8]} 10.
O-O {[%clk 0:02:00.8]} 10... O-O {[%clk 0:02:50.1]} 11. Rc1 {[%clk 0:02:00.9]}
11... Rc8 {[%clk 0:02:47.7]} 12. Bb1 {[%clk 0:02:00.3]} 12... Nxe5 {[%clk
0:02:18.6]} 13. dxe5 {[%clk 0:01:59.6]} 13... Ne8 {[%clk 0:02:17.8]} 14. Qd3
{[%clk 0:01:59.1]} 14... f5 {[%clk 0:02:15.6]} 15. exf6 {[%clk 0:01:56.5]} 15...
Nxf6 {[%clk 0:02:15.5]} 16. Be5 {[%clk 0:01:56.1]} 16... a6 {[%clk 0:01:59.8]}
17. Rfd1 {[%clk 0:01:55.1]} 17... Bb5 {[%clk 0:01:55.8]} 18. Qc2 {[%clk
0:01:49.1]} 18... Ne4 {[%clk 0:01:49.8]} 19. f3 {[%clk 0:01:42.9]} 19... Nf6
{[%clk 0:01:41.2]} 20. Bxf6 {[%clk 0:01:38.4]} 20... Bxf6 {[%clk 0:01:40.4]} 21.
Qh7+ {[%clk 0:01:37.2]} 21... Kf7 {[%clk 0:01:40.2]} 22. Qg6+ {[%clk 0:00:45.1]}
22... Kg8 {[%clk 0:01:34.1]} 23. Qh7+ {[%clk 0:00:44.6]} 23... Kf7 {[%clk
0:01:33.3]} 24. e4 {[%clk 0:00:43.8]} 24... Qb6+ {[%clk 0:01:22.6]} 25. Kh1
{[%clk 0:00:42.4]} 25... Rxc3 {[%clk 0:01:14]} 26. e5 {[%clk 0:00:33.3]} 26...
Rxc1 {[%clk 0:01:09.2]} 27. Qg6+ {[%clk 0:00:32.3]} 27... Kg8 {[%clk 0:01:05.6]}
28. Qh7+ {[%clk 0:00:27.8]} 28... Kf7 {[%clk 0:01:05.3]} 29. Bg6+ {[%clk
0:00:24.6]} 29... Ke7 {[%clk 0:01:02.6]} 30. exf6+ {[%clk 0:00:25]} 30... Kxf6
{[%clk 0:00:55.2]} 31. Rxc1 {[%clk 0:00:25.5]} 31... Qe3 {[%clk 0:00:51]} 32.
Rg1 {[%clk 0:00:17.8]} 32... d4 {[%clk 0:00:44.4]} 33. Be4 {[%clk 0:00:17.4]}
33... Bc6 {[%clk 0:00:41.3]} 34. Qg6+ {[%clk 0:00:16.8]} 34... Ke7 {[%clk
0:00:41.3]} 35. Qxg7+ {[%clk 0:00:16.9]} 35... Rf7 {[%clk 0:00:41.4]} 36. Qe5
{[%clk 0:00:14.8]} 36... Bxe4 {[%clk 0:00:39.9]} 37. fxe4 {[%clk 0:00:15.2]}
37... d3 {[%clk 0:00:39.5]} 38. Qc7+ {[%clk 0:00:12.9]} 38... Kf8 {[%clk
0:00:38.7]} 39. Qd6+ {[%clk 0:00:10.8]} 39... Kg7 {[%clk 0:00:37.2]} 40. Rd1
{[%clk 0:00:10.3]} 40... Qxe4 {[%clk 0:00:34]} 41. h3 {[%clk 0:00:08.8]} 41...
Rf2 {[%clk 0:00:25.1]} 42. Qg3+ {[%clk 0:00:08.7]} 42... Kh7 {[%clk 0:00:20.5]}
43. Qxf2 {[%clk 0:00:08.9]} 43... Qd5 {[%clk 0:00:17.2]} 44. Qf7+ {[%clk
0:00:07.8]} 44... Kh8 {[%clk 0:00:16]} 45. Qf8+ {[%clk 0:00:08.3]} 45... Kh7
{[%clk 0:00:15.6]} 46. Rf1 {[%clk 0:00:09.2]} 46... e5 {[%clk 0:00:13.3]} 47.
Qe7+ {[%clk 0:00:09.1]} 47... Kg6 {[%clk 0:00:11.4]} 48. Rf6+ {[%clk 0:00:09.7]}
48... Kh5 {[%clk 0:00:10.6]} 49. Kh2 {[%clk 0:00:06.7]} 49... e4 {[%clk
0:00:09.3]} 50. g4+ {[%clk 0:00:06.1]} 50... Kg5 {[%clk 0:00:07.3]} 51. Rf5+
{[%clk 0:00:06.2]} 51... Kg6 {[%clk 0:00:06.4]} 52. Rxd5 {[%clk 0:00:06.9]}
52... e3 {[%clk 0:00:04.4]} 53. Qe6+ {[%clk 0:00:07.4]} 53... Kg7 {[%clk
0:00:03.6]} 54. Rd7+ {[%clk 0:00:08.3]} 54... Kf8 {[%clk 0:00:03.7]} 55. Qe8+
{[%clk 0:00:09.2]} 55... Kxe8 {[%clk 0:00:03.1]} 56. Rxd3 {[%clk 0:00:09.5]} 1-0

[Event "Late-Titled-Tuesday-Blitz-May-14-2024"]
[Site "Chess.com"]
[Date "2024.05.14"]
[Round "7"]
[White "Flawless_Fighter"]
[Black "OK97"]
[Result "1-0"]
[WhiteElo "2689"]
[BlackElo "2861"]
[TimeControl "180+1"]
[EndTime "15:17:35 PDT"]
[Termination "Flawless_Fighter won by resignation"]

1. e4 {[%clk 0:02:04.5]} 1... c5 {[%clk 0:02:59.3]} 2. Nf3 {[%clk 0:02:03.9]}
2... a6 {[%clk 0:02:59.6]} 3. c3 {[%clk 0:02:03.7]} 3... d5 {[%clk 0:02:59.1]}
4. exd5 {[%clk 0:02:03.7]} 4... Qxd5 {[%clk 0:03:00]} 5. d4 {[%clk 0:02:04.5]}
5... e6 {[%clk 0:03:00.6]} 6. Bd3 {[%clk 0:02:04.6]} 6... Nc6 {[%clk 0:02:56.5]}
7. O-O {[%clk 0:02:04.9]} 7... Nf6 {[%clk 0:02:50]} 8. Re1 {[%clk 0:02:04.8]}
8... cxd4 {[%clk 0:02:45.9]} 9. cxd4 {[%clk 0:02:04]} 9... Be7 {[%clk
0:02:46.4]} 10. Nc3 {[%clk 0:02:04.2]} 10... Qd6 {[%clk 0:02:46.9]} 11. Bg5
{[%clk 0:02:02.5]} 11... O-O {[%clk 0:02:40.8]} 12. Qe2 {[%clk 0:01:56.3]} 12...
h6 {[%clk 0:02:22.2]} 13. Bh4 {[%clk 0:01:48]} 13... Nd5 {[%clk 0:02:10.7]} 14.
Bg3 {[%clk 0:01:46.5]} 14... Qd8 {[%clk 0:02:05.7]} 15. Rad1 {[%clk 0:01:44.9]}
15... b5 {[%clk 0:01:53.7]} 16. Bb1 {[%clk 0:01:43]} 16... Bb7 {[%clk
0:01:47.7]} 17. Qe4 {[%clk 0:01:41.7]} 17... Nf6 {[%clk 0:01:42.9]} 18. Qe3
{[%clk 0:01:38.6]} 18... Nb4 {[%clk 0:01:38.8]} 19. Ne5 {[%clk 0:01:38.3]} 19...
Nbd5 {[%clk 0:01:35.6]} 20. Qd3 {[%clk 0:01:38.2]} 20... Nxc3 {[%clk 0:01:34.9]}
21. bxc3 {[%clk 0:01:37.5]} 21... Qd5 {[%clk 0:01:17.5]} 22. f3 {[%clk 0:01:36]}
22... Rfc8 {[%clk 0:01:08.9]} 23. Bh4 {[%clk 0:01:34.6]} 23... Kf8 {[%clk
0:01:01.7]} 24. Kh1 {[%clk 0:01:31.4]} 24... Rc7 {[%clk 0:00:54.4]} 25. Bg3
{[%clk 0:01:26]} 25... Rac8 {[%clk 0:00:52.1]} 26. Nxf7 {[%clk 0:01:25.9]} 26...
Kxf7 {[%clk 0:00:52.1]} 27. Qg6+ {[%clk 0:01:25.4]} 27... Kf8 {[%clk 0:00:51]}
28. Be4 {[%clk 0:01:11.6]} 28... Qg5 {[%clk 0:00:41.3]} 29. Qxg5 {[%clk
0:01:09.6]} 29... hxg5 {[%clk 0:00:42.2]} 30. Bxc7 {[%clk 0:01:09.1]} 30... Bxe4
{[%clk 0:00:36.4]} 31. fxe4 {[%clk 0:01:04.3]} 31... Rxc7 {[%clk 0:00:37]} 32.
Rd3 {[%clk 0:01:02]} 32... Rc4 {[%clk 0:00:32.5]} 33. g3 {[%clk 0:01:00.9]}
33... Ke8 {[%clk 0:00:26.8]} 34. Kg2 {[%clk 0:01:00.5]} 34... Kd7 {[%clk
0:00:26.6]} 35. Re2 {[%clk 0:01:00.6]} 35... Ra4 {[%clk 0:00:22.3]} 36. Rf3
{[%clk 0:01:00.2]} 36... g4 {[%clk 0:00:19.4]} 37. Rf4 {[%clk 0:01:00.4]} 37...
g5 {[%clk 0:00:14.4]} 38. Rf1 {[%clk 0:00:58.7]} 38... Ra3 {[%clk 0:00:15]} 39.
Rc1 {[%clk 0:00:58.8]} 39... Ne8 {[%clk 0:00:14.4]} 40. c4 {[%clk 0:00:50.6]}
40... bxc4 {[%clk 0:00:10.9]} 41. Rxc4 {[%clk 0:00:51.5]} 41... Nd6 {[%clk
0:00:11.5]} 42. Rb4 {[%clk 0:00:47.3]} 42... Nb5 {[%clk 0:00:11.6]} 43. Rc4
{[%clk 0:00:43.1]} 43... Rd3 {[%clk 0:00:11.5]} 44. d5 {[%clk 0:00:40.4]} 44...
exd5 {[%clk 0:00:11.5]} 45. exd5 {[%clk 0:00:41.3]} 45... Rxd5 {[%clk
0:00:10.4]} 46. Rxg4 {[%clk 0:00:42]} 46... Rd1 {[%clk 0:00:07.2]} 47. Rge4
{[%clk 0:00:41]} 47... Bf6 {[%clk 0:00:07.5]} 48. Rc4 {[%clk 0:00:38.1]} 48...
Nd6 {[%clk 0:00:06.4]} 49. Ra4 {[%clk 0:00:37.5]} 49... Bd4 {[%clk 0:00:05.1]}
50. Kh3 {[%clk 0:00:36.6]} 50... a5 {[%clk 0:00:02.3]} 51. Kg4 {[%clk
0:00:35.1]} 51... Bf6 {[%clk 0:00:02.6]} 52. Rxa5 {[%clk 0:00:33.7]} 52... Rd4+
{[%clk 0:00:03.3]} 53. Kh5 {[%clk 0:00:33.4]} 53... Nc4 {[%clk 0:00:02.9]} 54.
Rf5 {[%clk 0:00:32.3]} 54... Bd8 {[%clk 0:00:02.7]} 55. Rf7+ {[%clk 0:00:27.3]}
55... Kc6 {[%clk 0:00:03]} 56. Rc2 {[%clk 0:00:25.9]} 56... Kc5 {[%clk
0:00:01.8]} 57. Rf5+ {[%clk 0:00:26.6]} 57... Kb4 {[%clk 0:00:02]} 58. Rff2
{[%clk 0:00:24.9]} 58... Ne3 {[%clk 0:00:02.1]} 59. Rcd2 {[%clk 0:00:24.9]}
59... Kc3 {[%clk 0:00:02.4]} 60. Rxd4 {[%clk 0:00:25]} 60... Kxd4 {[%clk
0:00:02.7]} 61. Rd2+ {[%clk 0:00:25.7]} 61... Ke4 {[%clk 0:00:01.9]} 62. Rxd8
{[%clk 0:00:26.6]} 62... Nf1 {[%clk 0:00:02.2]} 63. Kxg5 {[%clk 0:00:26]} 63...
Nxh2 {[%clk 0:00:02.9]} 64. g4 {[%clk 0:00:26.5]} 64... Nf3+ {[%clk 0:00:03.4]}
65. Kf6 {[%clk 0:00:27.1]} 1-0

[Event "Late-Titled-Tuesday-Blitz-May-14-2024"]
[Site "Chess.com"]
[Date "2024.05.14"]
[Round "7"]
[White "howitzer14"]
[Black "Jahonas"]
[Result "0-1"]
[WhiteElo "2999"]
[BlackElo "2391"]
[TimeControl "180+1"]
[EndTime "15:17:35 PDT"]
[Termination "Jahonas won by checkmate"]

1. e4 {[%clk 0:02:49.5]} 1... c6 {[%clk 0:02:59.8]} 2. Nf3 {[%clk 0:02:39.7]}
2... d5 {[%clk 0:02:59.5]} 3. exd5 {[%clk 0:02:40.1]} 3... cxd5 {[%clk
0:02:59.2]} 4. Ne5 {[%clk 0:02:40.9]} 4... Nc6 {[%clk 0:02:58.8]} 5. Bb5 {[%clk
0:02:40.2]} 5... Bd7 {[%clk 0:02:57.4]} 6. Nxd7 {[%clk 0:02:40.3]} 6... Qxd7
{[%clk 0:02:57.4]} 7. d4 {[%clk 0:02:41.2]} 7... Nf6 {[%clk 0:02:57.2]} 8. c3
{[%clk 0:02:40.9]} 8... e6 {[%clk 0:02:57.6]} 9. Nd2 {[%clk 0:02:37.2]} 9... a6
{[%clk 0:02:57.6]} 10. Kf1 {[%clk 0:02:38.1]} 10... axb5 {[%clk 0:02:57.1]} 11.
g3 {[%clk 0:02:04.6]} 11... Bd6 {[%clk 0:02:53.9]} 12. Kg2 {[%clk 0:02:04.5]}
12... O-O {[%clk 0:02:53.2]} 13. Re1 {[%clk 0:01:59.6]} 13... e5 {[%clk
0:02:52.4]} 14. dxe5 {[%clk 0:01:33.5]} 14... Nxe5 {[%clk 0:02:50.9]} 15. Nf3
{[%clk 0:01:32.8]} 15... Qg4 {[%clk 0:02:41.2]} 16. Re3 {[%clk 0:01:22.2]} 16...
Nxf3 {[%clk 0:02:38.5]} 17. Rxf3 {[%clk 0:01:20.9]} 17... Qe4 {[%clk 0:02:34.7]}
18. Kg1 {[%clk 0:01:18.4]} 18... Rfe8 {[%clk 0:02:32.4]} 19. Bg5 {[%clk
0:01:14.2]} 19... Ng4 {[%clk 0:02:15.4]} 20. h3 {[%clk 0:01:12.3]} 20... Ne5
{[%clk 0:02:13.5]} 21. Re3 {[%clk 0:01:09]} 21... Qf5 {[%clk 0:02:08.1]} 22.
Qxd5 {[%clk 0:01:06.9]} 22... Qxg5 {[%clk 0:01:38.1]} 23. Qxd6 {[%clk
0:01:06.7]} 23... Nc4 {[%clk 0:01:30]} 24. Rxe8+ {[%clk 0:01:04.4]} 24... Rxe8
{[%clk 0:01:29.3]} 25. Qd7 {[%clk 0:01:05.3]} 25... Qe5 {[%clk 0:01:20.1]} 26.
b3 {[%clk 0:01:01]} 26... Nd6 {[%clk 0:01:07.5]} 27. Rd1 {[%clk 0:01:00]} 27...
Nf5 {[%clk 0:00:59.9]} 28. Qxb7 {[%clk 0:00:48.3]} 28... h5 {[%clk 0:00:52.6]}
29. Qf3 {[%clk 0:00:43]} 29... h4 {[%clk 0:00:48.8]} 30. g4 {[%clk 0:00:41.1]}
30... Nd6 {[%clk 0:00:47.7]} 31. Kg2 {[%clk 0:00:38.3]} 31... Ne4 {[%clk
0:00:46.8]} 32. Re1 {[%clk 0:00:37.2]} 32... g6 {[%clk 0:00:44.9]} 33. Re3
{[%clk 0:00:32.6]} 33... Kg7 {[%clk 0:00:42.7]} 34. a4 {[%clk 0:00:31.5]} 34...
bxa4 {[%clk 0:00:41.8]} 35. bxa4 {[%clk 0:00:32.4]} 35... f5 {[%clk 0:00:41.4]}
36. Rd3 {[%clk 0:00:22.5]} 36... Ng5 {[%clk 0:00:38.3]} 37. Qb7+ {[%clk
0:00:20.3]} 37... Kh6 {[%clk 0:00:37.8]} 38. Re3 {[%clk 0:00:18.9]} 38... Qb8
{[%clk 0:00:30.5]} 39. Qxb8 {[%clk 0:00:12.6]} 39... Rxb8 {[%clk 0:00:31.1]} 40.
gxf5 {[%clk 0:00:13]} 40... gxf5 {[%clk 0:00:30.9]} 41. Re5 {[%clk 0:00:13.9]}
41... Kg6 {[%clk 0:00:30.7]} 42. a5 {[%clk 0:00:13.8]} 42... Rb3 {[%clk
0:00:30.7]} 43. c4 {[%clk 0:00:08.5]} 43... Ra3 {[%clk 0:00:27.5]} 44. Rb5
{[%clk 0:00:05.6]} 44... Ne4 {[%clk 0:00:27.1]} 45. c5 {[%clk 0:00:04.3]} 45...
Ra2 {[%clk 0:00:23.3]} 46. c6 {[%clk 0:00:04.2]} 46... Rxf2+ {[%clk 0:00:23]}
47. Kg1 {[%clk 0:00:04.8]} 47... Rc2 {[%clk 0:00:22.2]} 48. Rb6 {[%clk
0:00:05.3]} 48... f4 {[%clk 0:00:17.8]} 49. a6 {[%clk 0:00:02.4]} 49... f3
{[%clk 0:00:17.4]} 50. a7 {[%clk 0:00:02.2]} 50... Rc1+ {[%clk 0:00:13.1]} 51.
Kh2 {[%clk 0:00:02.7]} 51... Ng3 {[%clk 0:00:09.2]} 52. c7+ {[%clk 0:00:03.1]}
52... Kg5 {[%clk 0:00:08]} 53. Rb5+ {[%clk 0:00:03.6]} 53... Kf4 {[%clk
0:00:07.3]} 54. Rb4+ {[%clk 0:00:04.3]} 54... Ke5 {[%clk 0:00:05.2]} 55. Rb5+
{[%clk 0:00:02.8]} 55... Kd6 {[%clk 0:00:04.4]} 56. Rb1 {[%clk 0:00:01.1]} 56...
Rxb1 {[%clk 0:00:03.2]} 57. c8=Q {[%clk 0:00:00.2]} 57... Rh1# {[%clk
0:00:02.3]} 0-1